fUSD/lending_fUSD_20260620
["ID","MTS","AMOUNT","RATE_DAILY","PERIOD"]
[425779785,1781888070000,-651.01,0.00036054,30]
[425779786,1781888070000,-1473.35,0.00036054,30]
[425779784,1781888070000,-734.22,0.00036054,30]
[425779780,1781888070000,-5570.48,0.00036054,30]
[425779781,1781888070000,-500.0,0.00036054,30]
[425779787,1781888070000,-1586.38,0.00036054,30]
[425779783,1781888070000,-500.0,0.00036054,30]
[425779788,1781888070000,-697.49,0.00036054,30]
[425779782,1781888070000,-500.0,0.00036054,30]
[425779790,1781888070000,-510.3847284,0.00036054,30]
[425779791,1781888070000,-522.21,0.00036054,30]
[425779792,1781888070000,-860.38,0.00036054,30]
[425779793,1781888070000,-741.41,0.00036054,30]
[425779795,1781888070000,-500.0,0.00036054,30]
[425779794,1781888070000,-505.49,0.00036054,30]
[425779796,1781888070000,-1437.17,0.00036054,30]
[425779797,1781888070000,-500.0,0.00036054,30]
[425779789,1781888070000,-755.8,0.00036054,30]
[425779798,1781888071000,-1064.26,0.00036054,30]
[425779800,1781888071000,-500.0,0.00036054,30]
[425779799,1781888071000,-500.0,0.00036054,30]
[425779802,1781888071000,-515.79,0.00036054,30]
[425779801,1781888071000,-512.48,0.00036054,30]
[425779803,1781888071000,-500.0,0.00036054,30]
[425779804,1781888071000,-1376.12,0.00036054,30]
[425779805,1781888071000,-807.08,0.00036054,30]
[425779807,1781888071000,-999.65,0.00036054,30]
[425779808,1781888071000,-500.0,0.00036054,30]
[425779809,1781888071000,-500.0,0.00036054,30]
[425779810,1781888071000,-612.73,0.00036054,30]
[425779811,1781888071000,-526.37,0.00036054,30]
[425779812,1781888071000,-564.47,0.00036054,30]
[425779806,1781888071000,-802.44,0.00036054,30]
[425779818,1781888072000,-500.0,0.00036054,30]
[425779813,1781888072000,-710.03,0.00036054,30]
[425779815,1781888072000,-500.0,0.00036054,30]
[425779814,1781888072000,-1188.41,0.00036054,30]
[425779816,1781888072000,-500.0,0.00036054,30]
[425779817,1781888072000,-1214.29,0.00036054,30]
[425779819,1781888072000,-1458.25,0.00036054,30]
[425779820,1781888072000,-2990.41,0.00036054,30]
[425779821,1781888072000,-500.0,0.00036054,30]
[425779823,1781888072000,-500.0,0.00036054,30]
[425779824,1781888072000,-5534.69,0.00036054,30]
[425779825,1781888072000,-607.03,0.00036054,30]
[425779826,1781888072000,-500.0,0.00036054,30]
[425779827,1781888072000,-500.0,0.00036054,30]
[425779828,1781888072000,-3792.83,0.00036054,30]
[425779822,1781888072000,-1675.21,0.00036054,30]
[425779829,1781888072000,-500.0,0.00036054,30]
[425779830,1781888073000,-565.87,0.00036054,30]
[425779831,1781888073000,-607.04,0.00036054,30]
[425779832,1781888073000,-575.06,0.00036054,30]
[425779834,1781888073000,-500.0,0.00036054,30]
[425779833,1781888073000,-500.0,0.00036054,30]
[425779836,1781888073000,-853.91,0.00036054,30]
[425779835,1781888073000,-512.20292153,0.00036054,30]
[425779837,1781888073000,-559.13,0.00036054,30]
[425779838,1781888073000,-1164.63,0.00036054,30]
[425779841,1781888073000,-500.0,0.00036054,30]
[425779840,1781888073000,-500.0,0.00036054,30]
[425779842,1781888073000,-3075.0,0.00036054,30]
[425779843,1781888073000,-500.0,0.00036054,30]
[425779844,1781888073000,-876.43,0.00036054,30]
[425779845,1781888073000,-4074.72,0.00036054,30]
[425779839,1781888073000,-500.0,0.00036054,30]
[425779846,1781888073000,-500.0,0.00036054,30]
[425779854,1781888074000,-1776.22,0.00036054,30]
[425779853,1781888074000,-500.0,0.00036054,30]
[425779852,1781888074000,-650.27,0.00036054,30]
[425779851,1781888074000,-1277.26,0.00036054,30]
[425779847,1781888074000,-985.23,0.00036054,30]
[425779849,1781888074000,-2092.1,0.00036054,30]
[425779848,1781888074000,-1444.74,0.00036054,30]
[425779850,1781888074000,-606.07,0.00036054,30]
[425779855,1781888074000,-640.19,0.00036054,30]
[425779865,1781888074000,-500.0,0.00036054,30]
[425779856,1781888074000,-842.27,0.00036054,30]
[425779858,1781888074000,-737.33,0.00036054,30]
[425779859,1781888074000,-500.0,0.00036054,30]
[425779860,1781888074000,-500.0,0.00036054,30]
[425779861,1781888074000,-500.0,0.00036054,30]
[425779862,1781888074000,-466.6,0.00036054,30]
[425779863,1781888074000,-958.15,0.00036054,30]
[425779864,1781888074000,-553.05,0.00036054,30]
[425779857,1781888074000,-652.73,0.00036054,30]
[425779872,1781888075000,-500.0,0.00036054,30]
[425779871,1781888075000,-500.0,0.00036054,30]
[425779870,1781888075000,-151.0,0.00036054,30]
[425779876,1781888075000,-151.0,0.00036054,30]
[425779868,1781888075000,-537.57,0.00036054,30]
[425779867,1781888075000,-502.42,0.00036054,30]
[425779866,1781888075000,-621.71,0.00036054,30]
[425779869,1781888075000,-575.14,0.00036054,30]
[425779873,1781888075000,-721.82,0.00036054,30]
[425779877,1781888075000,-151.0,0.00036054,30]
[425779875,1781888075000,-151.0,0.00036054,30]
[425779883,1781888075000,-500.0,0.00036054,30]
[425779878,1781888075000,-1000.0,0.00036054,30]
[425779879,1781888075000,-151.0,0.00036054,30]
[425779880,1781888075000,-500.0,0.00036054,30]
[425779881,1781888075000,-1264.79,0.00036054,30]
[425779882,1781888075000,-151.0,0.00036054,30]
[425779874,1781888075000,-500.0,0.00036054,30]
[425779885,1781888076000,-151.0,0.00036054,30]
[425779887,1781888076000,-552.56,0.00036054,30]
[425779886,1781888076000,-151.0,0.00036054,30]
[425779888,1781888076000,-757.69,0.00036054,30]
[425779889,1781888076000,-422.04740038,0.00036054,30]
[425779890,1781888076000,-1265.07,0.00036054,30]
[425779892,1781888076000,-693.9,0.00036054,30]
[425779884,1781888076000,-1847.83,0.00036054,30]
[425779893,1781888076000,-510.64,0.00036054,30]
[425779894,1781888076000,-2137.39,0.00036054,30]
[425779895,1781888076000,-1172.01,0.00036054,30]
[425779896,1781888076000,-1423.78,0.00036054,30]
[425779897,1781888076000,-570.57691276,0.00036054,30]
[425779898,1781888076000,-1391.17,0.00036054,30]
[425779899,1781888076000,-1656.0,0.00036054,30]
[425779900,1781888076000,-721.41,0.00036054,30]
[425779891,1781888076000,-500.0,0.00036054,30]
[425779905,1781888077000,-534.92,0.00036054,30]
[425779906,1781888077000,-961.56,0.00036054,30]
[425779902,1781888077000,-857.32,0.00036054,30]
[425779903,1781888077000,-500.0,0.00036054,30]
[425779901,1781888077000,-592.13,0.00036054,30]
[425779907,1781888077000,-258.311985,0.00036054,30]
[425779904,1781888077000,-258.311985,0.00036054,30]
[425779908,1781888077000,-500.0,0.00036054,30]
[425779912,1781888077000,-3646.26,0.00036054,30]
[425779910,1781888077000,-258.311985,0.00036054,30]
[425779911,1781888077000,-500.0,0.00036054,30]
[425779913,1781888077000,-258.311991,0.00036054,30]
[425779914,1781888077000,-500.0,0.00036054,30]
[425779915,1781888077000,-1427.66,0.00036054,30]
[425779916,1781888077000,-631.67,0.00036054,30]
[425779917,1781888077000,-711.69,0.00036054,30]
[425779918,1781888077000,-500.0,0.00036054,30]
[425779909,1781888077000,-1123.62,0.00036054,30]
[425779923,1781888078000,-426.72,0.000361,90]
[425779925,1781888078000,-500.0,0.00036109,30]
[425779924,1781888078000,-500.0,0.00036109,30]
[425779926,1781888078000,-500.0,0.00036109,30]
[425779921,1781888078000,-151.0,0.00036054,30]
[425779919,1781888078000,-562.71,0.00036054,30]
[425779922,1781888078000,-423.21,0.000361,90]
[425779927,1781888078000,-902.01,0.00036109,30]
[425779920,1781888078000,-500.0,0.00036054,30]
[425779928,1781888078000,-500.0,0.00036109,30]
[425779936,1781888078000,-500.0,0.00036109,30]
[425779934,1781888078000,-661.85,0.00036109,30]
[425779935,1781888078000,-537.63,0.00036109,30]
[425779929,1781888078000,-625.28,0.00036109,30]
[425779932,1781888078000,-500.0,0.00036109,30]
[425779931,1781888078000,-500.0,0.00036109,30]
[425779930,1781888078000,-577.1,0.00036109,30]
[425779933,1781888078000,-1471.17,0.00036109,30]
[425779943,1781888079000,-500.0,0.00036109,30]
[425779937,1781888079000,-999.39,0.00036109,30]
[425779938,1781888079000,-500.0,0.00036109,30]
[425779940,1781888079000,-500.0,0.00036109,30]
[425779939,1781888079000,-1241.89,0.00036109,30]
[425779941,1781888079000,-1441.61,0.00036109,30]
[425779942,1781888079000,-694.32,0.00036109,30]
[425779944,1781888079000,-1071.98,0.00036109,30]
[425779945,1781888079000,-768.18,0.00036109,30]
[425779947,1781888079000,-500.0,0.00036109,30]
[425779946,1781888079000,-1111.1,0.00036109,30]
[425779949,1781888079000,-1407.87,0.00036109,30]
[425779948,1781888079000,-500.0,0.00036109,30]
[425779950,1781888079000,-500.0,0.00036109,30]
[425779952,1781888079000,-802.05,0.00036109,30]
[425779951,1781888079000,-884.27,0.00036109,30]
[425779953,1781888079000,-500.0,0.00036109,30]
[425779954,1781888080000,-496.0,0.00036109,30]
[425779955,1781888080000,-1677.91,0.00036109,30]
[425779956,1781888080000,-500.0,0.00036109,30]
[425779957,1781888080000,-496.0,0.00036109,30]
[425779959,1781888080000,-500.0,0.00036109,30]
[425779958,1781888080000,-636.34,0.00036109,30]
[425779961,1781888080000,-563.16,0.00036109,30]
[425779960,1781888080000,-500.0,0.00036109,30]
[425779971,1781888080000,-588.77,0.00036109,30]
[425779963,1781888080000,-500.0,0.00036109,30]
[425779965,1781888080000,-586.92,0.00036109,30]
[425779964,1781888080000,-500.0,0.00036109,30]
[425779966,1781888080000,-793.97,0.00036109,30]
[425779967,1781888080000,-500.0,0.00036109,30]
[425779968,1781888080000,-517.68,0.00036109,30]
[425779969,1781888080000,-502.59,0.00036109,30]
[425779970,1781888080000,-500.0,0.00036109,30]
[425779962,1781888080000,-808.38,0.00036109,30]
[425779977,1781888081000,-500.0,0.00036109,30]
[425779978,1781888081000,-500.0,0.00036109,30]
[425779975,1781888081000,-500.0,0.00036109,30]
[425779979,1781888081000,-500.0,0.00036109,30]
[425779973,1781888081000,-1622.56,0.00036109,30]
[425779972,1781888081000,-420.3,0.00036109,30]
[425779976,1781888081000,-545.05,0.00036109,30]
[425779980,1781888081000,-500.0,0.00036109,30]
[425779974,1781888081000,-559.72,0.00036109,30]
[425779983,1781888081000,-563.83,0.00036109,30]
[425779990,1781888081000,-786.02,0.00036109,30]
[425779988,1781888081000,-873.12,0.00036109,30]
[425779987,1781888081000,-719.45,0.00036109,30]
[425779989,1781888081000,-997.89,0.00036109,30]
[425779984,1781888081000,-500.0,0.00036109,30]
[425779985,1781888081000,-677.13,0.00036109,30]
[425779982,1781888081000,-631.31,0.00036109,30]
[425779986,1781888081000,-500.0,0.00036109,30]
[425779981,1781888081000,-500.0,0.00036109,30]
[425779998,1781888082000,-500.0,0.00036109,30]
[425779991,1781888082000,-579.64,0.00036109,30]
[425779993,1781888082000,-500.0,0.00036109,30]
[425779992,1781888082000,-1595.76,0.00036109,30]
[425779994,1781888082000,-500.0,0.00036109,30]
[425779996,1781888082000,-500.0,0.00036109,30]
[425779995,1781888082000,-544.21,0.00036109,30]
[425779997,1781888082000,-549.11,0.00036109,30]
[425780000,1781888082000,-500.0,0.00036109,30]
[425780002,1781888082000,-500.0,0.00036109,30]
[425780001,1781888082000,-498.44903025,0.00036109,30]
[425780003,1781888082000,-500.0,0.00036109,30]
[425780004,1781888082000,-500.0,0.00036109,30]
[425780005,1781888082000,-742.76,0.00036109,30]
[425780006,1781888082000,-1217.88,0.00036109,30]
[425780007,1781888082000,-779.91,0.00036109,30]
[425780008,1781888082000,-511.18,0.00036109,30]
[425779999,1781888082000,-1173.72,0.00036109,30]
[425780016,1781888083000,-514.74,0.00036109,30]
[425780014,1781888083000,-500.0,0.00036109,30]
[425780013,1781888083000,-2382.02,0.00036109,30]
[425780009,1781888083000,-500.0,0.00036109,30]
[425780011,1781888083000,-500.0,0.00036109,30]
[425780010,1781888083000,-1153.53,0.00036109,30]
[425780012,1781888083000,-528.30947201,0.00036109,30]
[425780015,1781888083000,-1320.43,0.00036109,30]
[425780020,1781888083000,-500.0,0.00036109,30]
[425780017,1781888083000,-500.0,0.00036109,30]
[425780019,1781888083000,-1356.93,0.00036109,30]
[425780022,1781888083000,-500.0,0.00036109,30]
[425780021,1781888083000,-500.0,0.00036109,30]
[425780024,1781888083000,-769.14,0.00036109,30]
[425780023,1781888083000,-758.06,0.00036109,30]
[425780025,1781888083000,-1329.2,0.00036109,30]
[425780026,1781888083000,-500.0,0.00036109,30]
[425780018,1781888083000,-981.85,0.00036109,30]
[425780027,1781888084000,-544.12,0.00036109,30]
[425780028,1781888084000,-500.0,0.00036109,30]
[425780029,1781888084000,-641.52,0.00036109,30]
[425780031,1781888084000,-500.0,0.00036109,30]
[425780030,1781888084000,-527.41,0.00036109,30]
[425780032,1781888084000,-536.88,0.00036109,30]
[425780033,1781888084000,-500.0,0.00036109,30]
[425780034,1781888084000,-508.71,0.00036109,30]
[425780036,1781888084000,-500.0,0.00036109,30]
[425780037,1781888084000,-500.0,0.00036109,30]
[425780038,1781888084000,-531.64,0.00036109,30]
[425780039,1781888084000,-938.69,0.00036109,30]
[425780040,1781888084000,-578.3,0.00036109,30]
[425780041,1781888084000,-591.38952258,0.00036109,30]
[425780035,1781888084000,-500.0,0.00036109,30]
[425780049,1781888085000,-500.0,0.00036109,30]
[425780042,1781888085000,-500.0,0.00036109,30]
[425780044,1781888085000,-568.98,0.00036109,30]
[425780043,1781888085000,-1259.59,0.00036109,30]
[425780046,1781888085000,-1095.52,0.00036109,30]
[425780045,1781888085000,-500.0,0.00036109,30]
[425780047,1781888085000,-576.54,0.00036109,30]
[425780048,1781888085000,-500.0,0.00036109,30]
[425780058,1781888085000,-500.0,0.00036109,30]
[425780051,1781888085000,-500.0,0.00036109,30]
[425780052,1781888085000,-567.37,0.00036109,30]
[425780053,1781888085000,-809.71,0.00036109,30]
[425780054,1781888085000,-879.94,0.00036109,30]
[425780055,1781888085000,-923.44,0.00036109,30]
[425780056,1781888085000,-580.64,0.00036109,30]
[425780057,1781888085000,-515.23631124,0.00036109,30]
[425780050,1781888085000,-808.45,0.00036109,30]
[425780059,1781888086000,-500.0,0.00036109,120]
[425780060,1781888086000,-500.0,0.00036109,30]
[425780061,1781888086000,-500.0,0.00036109,30]
[425780062,1781888086000,-500.0,0.00036109,30]
[425780063,1781888086000,-747.58,0.00036109,30]
[425780064,1781888086000,-569.82,0.00036109,30]
[425780065,1781888086000,-1017.11,0.00036109,30]
[425780066,1781888086000,-500.0,0.00036109,30]
[425780067,1781888086000,-500.0,0.00036109,30]
[425780069,1781888086000,-500.0,0.00036109,30]
[425780070,1781888086000,-613.4,0.00036109,30]
[425780071,1781888086000,-500.0,0.00036109,30]
[425780073,1781888086000,-599.46,0.00036109,30]
[425780072,1781888086000,-500.0,0.00036109,30]
[425780074,1781888086000,-1060.51,0.00036109,30]
[425780068,1781888086000,-674.8,0.00036109,30]
[425780075,1781888086000,-588.74,0.00036109,30]
[425780081,1781888087000,-1684.99,0.00036109,30]
[425780082,1781888087000,-517.19,0.00036109,30]
[425780080,1781888087000,-500.0,0.00036109,30]
[425780076,1781888087000,-821.24,0.00036109,30]
[425780077,1781888087000,-500.0,0.00036109,30]
[425780078,1781888087000,-725.68,0.00036109,30]
[425780079,1781888087000,-996.41,0.00036109,30]
[425780083,1781888087000,-554.08,0.00036109,30]
[425780092,1781888087000,-934.77,0.00036109,30]
[425780085,1781888087000,-1338.57,0.00036109,30]
[425780086,1781888087000,-569.17,0.00036109,30]
[425780087,1781888087000,-500.0,0.00036109,30]
[425780089,1781888087000,-500.0,0.00036109,30]
[425780088,1781888087000,-500.0,0.00036109,30]
[425780091,1781888087000,-500.0,0.00036109,30]
[425780090,1781888087000,-662.39,0.00036109,30]
[425780093,1781888087000,-500.0,0.00036109,30]
[425780084,1781888087000,-500.0,0.00036109,30]
[425780100,1781888088000,-500.0,0.00036109,30]
[425780099,1781888088000,-500.0,0.00036109,30]
[425780097,1781888088000,-507.51,0.00036109,30]
[425780094,1781888088000,-1014.09,0.00036109,30]
[425780095,1781888088000,-833.48,0.00036109,30]
[425780096,1781888088000,-1286.29,0.00036109,30]
[425780098,1781888088000,-500.0,0.00036109,30]
[425780102,1781888088000,-759.52,0.00036109,30]
[425780101,1781888088000,-500.0,0.00036109,30]
[425780105,1781888088000,-500.0,0.00036109,30]
[425780110,1781888088000,-500.0,0.00036109,30]
[425780111,1781888088000,-1348.31,0.00036109,30]
[425780108,1781888088000,-544.23,0.00036109,30]
[425780103,1781888088000,-627.51,0.00036109,30]
[425780106,1781888088000,-548.15,0.00036109,30]
[425780107,1781888088000,-500.0,0.00036109,30]
[425780104,1781888088000,-547.43,0.00036109,30]
[425780109,1781888088000,-547.88,0.00036109,30]
[425780118,1781888089000,-500.0,0.00036109,30]
[425780112,1781888089000,-500.0,0.00036109,30]
[425780113,1781888089000,-2045.07,0.00036109,30]
[425780114,1781888089000,-664.75,0.00036109,30]
[425780116,1781888089000,-500.0,0.00036109,30]
[425780115,1781888089000,-537.97,0.00036109,30]
[425780117,1781888089000,-500.0,0.00036109,30]
[425780119,1781888089000,-701.68,0.00036109,30]
[425780120,1781888089000,-879.59,0.00036109,30]
[425780121,1781888089000,-1145.24,0.00036109,30]
[425780128,1781888089000,-500.0,0.00036109,30]
[425780126,1781888089000,-780.74,0.00036109,30]
[425780127,1781888089000,-594.02,0.00036109,30]
[425780129,1781888089000,-500.0,0.00036109,30]
[425780125,1781888089000,-500.0,0.00036109,30]
[425780123,1781888089000,-500.0,0.00036109,30]
[425780122,1781888089000,-906.68,0.00036109,30]
[425780124,1781888089000,-634.83,0.00036109,30]
[425780137,1781888090000,-952.89,0.00036109,30]
[425780130,1781888090000,-743.84,0.00036109,30]
[425780131,1781888090000,-500.0,0.00036109,30]
[425780132,1781888090000,-1013.87,0.00036109,30]
[425780133,1781888090000,-2492.23,0.00036109,30]
[425780134,1781888090000,-500.0,0.00036109,30]
[425780135,1781888090000,-577.97,0.00036109,30]
[425780136,1781888090000,-1013.66,0.00036109,30]
[425780145,1781888090000,-1182.85,0.00036109,30]
[425780139,1781888090000,-574.37,0.00036109,30]
[425780140,1781888090000,-723.87,0.00036109,30]
[425780142,1781888090000,-2528.15,0.00036109,30]
[425780141,1781888090000,-535.88692017,0.00036109,30]
[425780143,1781888090000,-695.27,0.00036109,30]
[425780144,1781888090000,-636.13,0.00036109,30]
[425780146,1781888090000,-620.19,0.00036109,30]
[425780147,1781888090000,-500.0,0.00036109,30]
[425780138,1781888090000,-1109.66,0.00036109,30]
[425780155,1781888091000,-500.0,0.00036109,30]
[425780153,1781888091000,-900.24,0.00036109,30]
[425780151,1781888091000,-500.0,0.00036109,30]
[425780154,1781888091000,-500.0,0.00036109,30]
[425780148,1781888091000,-628.07,0.00036109,30]
[425780149,1781888091000,-722.6,0.00036109,30]
[425780150,1781888091000,-918.47,0.00036109,30]
[425780156,1781888091000,-636.4,0.00036109,30]
[425780152,1781888091000,-662.33,0.00036109,30]
[425780157,1781888091000,-500.0,0.00036109,30]
[425780164,1781888091000,-598.87,0.00036109,30]
[425780163,1781888091000,-947.68,0.00036109,30]
[425780162,1781888091000,-500.0,0.00036109,30]
[425780158,1781888091000,-662.63,0.00036109,30]
[425780160,1781888091000,-643.62,0.00036109,30]
[425780165,1781888091000,-970.43,0.00036109,30]
[425780159,1781888091000,-434.27438925,0.00036109,30]
[425780161,1781888091000,-2588.84,0.00036109,30]
[425780172,1781888092000,-500.0,0.00036109,30]
[425780166,1781888092000,-658.41,0.00036109,30]
[425780167,1781888092000,-1083.37,0.00036109,30]
[425780169,1781888092000,-846.54,0.00036109,30]
[425780168,1781888092000,-500.0,0.00036109,30]
[425780170,1781888092000,-649.08,0.00036109,30]
[425780171,1781888092000,-650.2,0.00036109,30]
[425780173,1781888092000,-500.0,0.00036109,30]
[425780174,1781888092000,-1487.57,0.00036109,30]
[425780175,1781888092000,-500.0,0.00036109,30]
[425780182,1781888092000,-5570.48,0.00036109,30]
[425780181,1781888092000,-697.26,0.00036109,30]
[425780180,1781888092000,-678.01,0.00036109,30]
[425780183,1781888092000,-500.0,0.00036109,30]
[425780177,1781888092000,-585.97,0.00036109,30]
[425780178,1781888092000,-846.43,0.00036109,30]
[425780176,1781888092000,-1066.11,0.00036109,30]
[425780179,1781888092000,-1580.21,0.00036109,30]
[425780191,1781888093000,-755.8,0.00036109,30]
[425780184,1781888093000,-500.0,0.00036109,30]
[425780185,1781888093000,-500.0,0.00036109,30]
[425780186,1781888093000,-734.22,0.00036109,30]
[425780187,1781888093000,-651.01,0.00036109,30]
[425780188,1781888093000,-1473.35,0.00036109,30]
[425780189,1781888093000,-1586.38,0.00036109,30]
[425780190,1781888093000,-697.49,0.00036109,30]
[425780192,1781888093000,-522.21,0.00036109,30]
[425780202,1781888093000,-512.48,0.00036109,30]
[425780194,1781888093000,-741.41,0.00036109,30]
[425780195,1781888093000,-505.49,0.00036109,30]
[425780196,1781888093000,-500.0,0.00036109,30]
[425780198,1781888093000,-500.0,0.00036109,30]
[425780197,1781888093000,-1437.17,0.00036109,30]
[425780200,1781888093000,-500.0,0.00036109,30]
[425780199,1781888093000,-1064.26,0.00036109,30]
[425780201,1781888093000,-500.0,0.00036109,30]
[425780193,1781888093000,-860.38,0.00036109,30]
[425780208,1781888094000,-999.65,0.00036109,30]
[425780209,1781888094000,-500.0,0.00036109,30]
[425780207,1781888094000,-802.44,0.00036109,30]
[425780211,1781888094000,-612.73,0.00036109,30]
[425780203,1781888094000,-500.0,0.00036109,30]
[425780204,1781888094000,-515.79,0.00036109,30]
[425780205,1781888094000,-1376.12,0.00036109,30]
[425780210,1781888094000,-500.0,0.00036109,30]
[425780206,1781888094000,-807.08,0.00036109,30]
[425780213,1781888094000,-710.03,0.00036109,30]
[425780220,1781888094000,-2990.41,0.00036109,30]
[425780218,1781888094000,-500.0,0.00036109,30]
[425780219,1781888094000,-1458.25,0.00036109,30]
[425780212,1781888094000,-526.37,0.00036109,30]
[425780216,1781888094000,-500.0,0.00036109,30]
[425780215,1781888094000,-500.0,0.00036109,30]
[425780214,1781888094000,-1188.41,0.00036109,30]
[425780217,1781888094000,-1214.29,0.00036109,30]
[425780221,1781888095000,-1675.21,0.00036109,30]
[425780222,1781888095000,-500.0,0.00036109,30]
[425780223,1781888095000,-5534.69,0.00036109,30]
[425780224,1781888095000,-607.03,0.00036109,30]
[425780225,1781888095000,-500.0,0.00036109,30]
[425780226,1781888095000,-422.71672926,0.00036109,30]
[425780227,1781888095000,-3792.83,0.00036109,30]
[425780228,1781888095000,-500.0,0.00036109,30]
[425780229,1781888095000,-565.87,0.00036109,30]
[425780232,1781888095000,-500.0,0.00036109,30]
[425780231,1781888095000,-575.06,0.00036109,30]
[425780233,1781888095000,-500.0,0.00036109,30]
[425780235,1781888095000,-559.13,0.00036109,30]
[425780234,1781888095000,-853.91,0.00036109,30]
[425780237,1781888095000,-500.0,0.00036109,30]
[425780236,1781888095000,-1164.63,0.00036109,30]
[425780230,1781888095000,-607.04,0.00036109,30]
[425780238,1781888096000,-500.0,0.00036109,30]
[425780239,1781888096000,-500.0,0.00036109,30]
[425780240,1781888096000,-3075.0,0.00036109,30]
[425780241,1781888096000,-876.43,0.00036109,30]
[425780242,1781888096000,-4074.72,0.00036109,30]
[425780244,1781888096000,-985.23,0.00036109,30]
[425780243,1781888096000,-428.16854788,0.00036109,30]
[425780245,1781888096000,-1444.74,0.00036109,30]
[425780248,1781888096000,-1277.26,0.00036109,30]
[425780247,1781888096000,-606.07,0.00036109,30]
[425780249,1781888096000,-650.27,0.00036109,30]
[425780250,1781888096000,-500.0,0.00036109,30]
[425780251,1781888096000,-1776.22,0.00036109,30]
[425780252,1781888096000,-640.19,0.00036109,30]
[425780246,1781888096000,-2092.1,0.00036109,30]
[425780253,1781888097000,-842.27,0.00036109,30]
[425780254,1781888097000,-652.73,0.00036109,30]
[425780255,1781888097000,-737.33,0.00036109,30]
[425780256,1781888097000,-500.0,0.00036109,30]
[425780258,1781888097000,-500.0,0.00036109,30]
[425780257,1781888097000,-500.0,0.00036109,30]
[425780259,1781888097000,-958.15,0.00036109,30]
[425780260,1781888097000,-621.71,0.00036109,30]
[425780262,1781888097000,-537.57,0.00036109,30]
[425780263,1781888097000,-575.14,0.00036109,30]
[425780264,1781888097000,-362.87913661,0.00036109,30]
[425780265,1781888097000,-500.0,0.00036109,30]
[425780266,1781888097000,-721.82,0.00036109,30]
[425780268,1781888097000,-1000.0,0.00036109,30]
[425780267,1781888097000,-500.0,0.00036109,30]
[425780269,1781888097000,-500.0,0.00036109,30]
[425780261,1781888097000,-502.42,0.00036109,30]
[425780274,1781888098000,-757.69,0.00036109,30]
[425780275,1781888098000,-1265.07,0.00036109,30]
[425780273,1781888098000,-552.56,0.00036109,30]
[425780276,1781888098000,-500.0,0.00036109,30]
[425780271,1781888098000,-500.0,0.00036109,30]
[425780270,1781888098000,-1264.79,0.00036109,30]
[425780272,1781888098000,-1847.83,0.00036109,30]
[425780277,1781888098000,-693.9,0.00036109,30]
[425780284,1781888098000,-592.13,0.00036109,30]
[425780280,1781888098000,-1172.01,0.00036109,30]